lending/lending_fUSD_20250501
["ID","MTS","AMOUNT","RATE_DAILY","PERIOD"]
[359572277,1746133848898,-450.0,0.00035616,11]
[359572278,1746133848908,-450.0,0.00035616,11]
[359572279,1746133848918,-1058.66,0.00035616,11]
[359572280,1746133848928,-450.0,0.00035616,11]
[359572281,1746133848938,-450.0,0.00035616,11]
[359572282,1746133848948,-488.95,0.00035616,11]
[359572283,1746133848958,-1811.96,0.00035616,11]
[359572284,1746133848967,-196.2744216,0.00035616,11]
[359572285,1746133848977,-450.0,0.00035616,11]
[359572286,1746133848986,-450.0,0.00035616,11]
[359572287,1746133848996,-450.0,0.00035616,11]
[359572288,1746133849006,-470.0,0.00035616,11]
[359572289,1746133849016,-450.0,0.00035616,11]
[359572290,1746133849026,-676.92,0.00035616,11]
[359572291,1746133849036,-450.0,0.00035616,11]
[359572292,1746133849046,-450.0,0.00035616,11]
[359572293,1746133849056,-822.32,0.00035616,11]
[359572294,1746133849066,-450.0,0.00035616,11]
[359572295,1746133849076,-699.05,0.00035616,11]
[359572296,1746133849085,-524.97,0.00035616,11]
[359572297,1746133849095,-808.83,0.00035616,11]
[359572298,1746133849105,-1339.22,0.00035616,11]
[359572299,1746133849116,-450.0,0.00035616,11]
[359572300,1746133849126,-450.0,0.00035616,11]
[359572301,1746133849136,-423.78600852,0.00035616,11]
[359572302,1746133849145,-1695.93,0.00035616,2]
[359572303,1746133849155,-450.0,0.00035616,11]
[359572304,1746133849165,-1096.09,0.00035616,11]
[359572305,1746133849175,-450.0,0.00035616,11]
[359572306,1746133849185,-892.78,0.00035616,11]
[359572307,1746133849195,-503.56129683,0.00035616,11]
[359572308,1746133849204,-459.98,0.00035616,11]
[359572309,1746133849214,-450.0,0.00035616,11]
[359572310,1746133849224,-450.0,0.00035616,11]
[359572311,1746133849234,-1072.81,0.00035616,11]
[359572312,1746133849244,-450.0,0.00035616,11]
[359572313,1746133849254,-475.14,0.00035616,11]
[359572314,1746133849264,-624.88,0.00035616,11]
[359572315,1746133849274,-500.0,0.00035616,11]
[359572316,1746133849284,-450.0,0.00035616,11]
[359572317,1746133849294,-450.0,0.00035616,11]
[359572318,1746133849304,-450.0,0.00035616,11]
[359572319,1746133849313,-450.0,0.00035616,11]
[359572320,1746133849323,-450.0,0.00035616,11]
[359572321,1746133849334,-450.0,0.00035616,11]
[359572322,1746133849343,-1018.92,0.00035616,11]
[359572323,1746133849353,-1328.85,0.00035616,11]
[359572324,1746133849363,-450.0,0.00035616,11]
[359572325,1746133849373,-450.0,0.00035616,11]
[359572326,1746133849383,-450.0,0.00035616,11]
[359572327,1746133849393,-450.0,0.00035616,11]
[359572328,1746133849403,-450.0,0.00035616,11]
[359572329,1746133849414,-470.0,0.00035616,11]
[359572330,1746133849424,-450.0,0.00035616,11]
[359572331,1746133849434,-256.1570877,0.00035616,11]
[359572332,1746133849444,-1000.0,0.00035616,11]
[359572333,1746133849454,-1063.07,0.00035616,11]
[359572334,1746133849464,-526.11,0.00035616,11]
[359572335,1746133849473,-1103.55,0.00035616,11]
[359572336,1746133849483,-450.0,0.00035616,11]
[359572337,1746133849493,-470.0,0.00035616,11]
[359572338,1746133849503,-400.06413632,0.00035616,11]
[359572339,1746133849513,-450.0,0.00035616,11]
[359572340,1746133849522,-3012.42,0.00035616,11]
[359572341,1746133849532,-644.23,0.00035616,11]
[359572342,1746133849542,-450.0,0.00035616,11]
[359572343,1746133849551,-644.27,0.00035616,11]
[359572344,1746133849561,-450.0,0.00035616,11]
[359572345,1746133849571,-595.91,0.00035616,11]
[359572346,1746133849580,-450.0,0.00035616,11]
[359572347,1746133849590,-735.81,0.00035616,11]
[359572348,1746133849600,-1193.59,0.00035616,11]
[359572349,1746133849610,-450.0,0.00035616,11]
[359572350,1746133849620,-450.0,0.00035616,11]
[359572351,1746133849632,-450.0,0.00035616,11]
[359572352,1746133849642,-523.49,0.00035616,11]
[359572353,1746133849652,-487.41,0.00035616,11]
[359572354,1746133849663,-450.0,0.00035616,11]
[359572355,1746133849672,-450.0,0.00035616,11]
[359572356,1746133849682,-1175.81,0.00035616,11]
[359572357,1746133849692,-563.9,0.00035616,11]
[359572358,1746133849702,-450.0,0.00035616,11]
[359572359,1746133849712,-667.64,0.00035616,11]
[359572360,1746133849723,-450.0,0.00035616,11]
[359572361,1746133849732,-362.90604878,0.00035616,11]
[359572362,1746133849742,-918.4,0.00035616,11]
[359572363,1746133849752,-450.0,0.00035616,11]
[359572364,1746133849761,-692.91,0.00035616,11]
[359572365,1746133849771,-450.0,0.00035616,11]
[359572366,1746133849781,-450.0,0.00035616,11]
[359572367,1746133849791,-450.0,0.00035616,11]
[359572368,1746133849801,-911.62,0.00035616,11]
[359572369,1746133849810,-840.55,0.00035616,11]
[359572370,1746133849820,-450.0,0.00035616,11]
[359572371,1746133849830,-450.0,0.00035616,11]
[359572372,1746133849840,-717.99,0.00035616,11]
[359572373,1746133849850,-470.0,0.00035616,11]
[359572374,1746133849860,-561.55,0.00035616,11]
[359572375,1746133849869,-563.63334912,0.00035616,11]
[359572376,1746133849880,-1103.54,0.00035616,11]
[359572377,1746133849890,-450.0,0.00035616,11]
[359572378,1746133849900,-1284.0,0.00035616,11]
[359572379,1746133849910,-470.0,0.00035616,11]
[359572380,1746133849920,-500.0,0.00035616,11]
[359572381,1746133849930,-500.0,0.00035616,11]
[359572382,1746133849941,-500.0,0.00035616,11]
[359572383,1746133849951,-768.85,0.00035616,11]
[359572384,1746133849961,-500.0,0.00035616,11]
[359572385,1746133849972,-450.0,0.00035616,11]
[359572386,1746133849982,-500.0,0.00035616,11]
[359572387,1746133849991,-450.0,0.00035616,11]
[359572388,1746133850001,-500.0,0.00035616,11]
[359572389,1746133850011,-869.99,0.00035616,11]
[359572390,1746133850021,-500.0,0.00035616,11]
[359572391,1746133850030,-500.0,0.00035616,11]
[359572392,1746133850040,-500.0,0.00035616,11]
[359572393,1746133850050,-500.0,0.00035616,11]
[359572394,1746133850059,-450.0,0.00035616,11]
[359572395,1746133850070,-500.0,0.00035616,11]
[359572396,1746133850079,-500.0,0.00035616,11]
[359572397,1746133850089,-500.0,0.00035616,11]
[359572398,1746133850098,-314.10185125,0.00035616,11]
[359572399,1746133850108,-500.0,0.00035616,11]
[359572400,1746133850117,-500.0,0.00035616,11]
[359572401,1746133850128,-907.07,0.00035616,11]
[359572402,1746133850137,-500.0,0.00035616,11]
[359572403,1746133850147,-500.0,0.00035616,11]
[359572404,1746133850157,-509.28013165,0.00035616,11]
[359572405,1746133850168,-450.0,0.00035616,11]
[359572406,1746133850178,-650.18,0.00035616,11]
[359572407,1746133850188,-528.53,0.00035616,11]
[359572408,1746133850200,-840.52,0.00035616,11]
[359572409,1746133850210,-450.0,0.00035616,11]
[359572410,1746133850220,-252.6129865,0.00035616,11]
[359572411,1746133851006,-842.0070135,0.00035616,11]
[359572412,1746133851017,-1195.77,0.00035616,11]
[359572413,1746133851027,-23.84226095,0.00035616,11]
[359572414,1746133851306,-233.74870971,0.00025927,2]
[359572415,1746133851317,-1531.42773905,0.00035616,11]
[359572416,1746133851327,-876.41,0.00035616,11]
[359572417,1746133851339,-356.23183123,0.00035616,11]
[359572418,1746133851349,-842.29,0.00035616,11]
[359572419,1746133851358,-541.67,0.00035616,11]
[359572420,1746133851367,-450.0,0.00035616,11]
[359572421,1746133851378,-899.57,0.00035616,11]
[359572422,1746133851388,-438.83294835,0.00035616,11]
[359572423,1746133851420,-11.16705165,0.00035616,11]
[359572424,1746133851430,-450.0,0.00035616,11]
[359572425,1746133851439,-295.24549644,0.00035616,11]
[359572426,1746133851657,-492.45450356,0.00035616,11]
[359572427,1746133851668,-208.92593361,0.00035616,11]
[359572428,1746133851688,-711.35406639,0.00035616,11]
[359572429,1746133851699,-7876.73,0.00035616,11]
[359572430,1746133851709,-450.0,0.00035616,11]
[359572431,1746133851720,-1306.96,0.00035616,11]
[359572432,1746133851729,-613.48,0.00035616,11]
[359572433,1746133851739,-470.0,0.00035616,11]
[359572434,1746133851749,-470.0,0.00035616,11]
[359572435,1746133851759,-913.39,0.00035616,11]
[359572436,1746133851768,-450.0,0.00035616,11]
[359572437,1746133851778,-470.0,0.00035616,11]
[359572438,1746133851787,-595.14794625,0.00035616,11]
[359572439,1746133851796,-918.28,0.00035616,11]
[359572440,1746133851806,-450.0,0.00035616,11]
[359572441,1746133851815,-657.82,0.00035616,11]
[359572442,1746133851825,-1713.49,0.00035616,8]
[359572443,1746133851834,-450.0,0.00035616,11]
[359572444,1746133851844,-450.0,0.00035616,11]
[359572445,1746133851854,-562.56120641,0.00035616,11]
[359572446,1746133851863,-450.0,0.00035616,11]
[359572447,1746133851873,-450.0,0.00035616,11]
[359572448,1746133851882,-470.0,0.00035616,11]
[359572449,1746133851892,-870.39,0.00035616,11]
[359572450,1746133851901,-1288.94,0.00035616,11]
[359572451,1746133851911,-780.51,0.00035616,11]
[359572452,1746133851920,-13693.55,0.00035616,11]
[359572453,1746133851929,-5318.74,0.00035616,11]
[359572454,1746133851939,-450.0,0.00035616,11]
[359572455,1746133851949,-450.0,0.00035616,11]
[359572456,1746133851959,-450.0,0.00035616,11]
[359572457,1746133851969,-2336.95,0.00035616,11]
[359572458,1746133851979,-530.32,0.00035616,11]
[359572459,1746133851988,-470.0,0.00035616,11]
[359572460,1746133852000,-1796.83,0.00035616,11]
[359572461,1746133852011,-2171.12,0.00035616,11]
[359572462,1746133852021,-1190.64,0.00035616,11]
[359572463,1746133852030,-450.0,0.00035616,11]
[359572464,1746133852039,-544.03290989,0.00035616,11]
[359572465,1746133852049,-519.60641029,0.00035616,11]
[359572466,1746133852059,-450.0,0.00035616,11]
[359572467,1746133852068,-1840.92,0.00035616,11]
[359572468,1746133852078,-3005.14,0.00035616,11]
[359572469,1746133852088,-450.0,0.00035616,11]
[359572470,1746133852097,-539.78,0.00035616,11]
[359572471,1746133852107,-450.0,0.00035616,11]
[359572472,1746133852119,-985.57,0.00035616,11]
[359572473,1746133852130,-450.0,0.00035616,11]
[359572474,1746133852140,-450.0,0.00035616,11]
[359572475,1746133852150,-547.09244354,0.00035616,11]
[359572476,1746133852160,-766.2,0.00035616,11]
[359572477,1746133852169,-450.0,0.00035616,11]
[359572478,1746133852179,-1019.15,0.00035616,11]
[359572479,1746133852189,-602.11,0.00035616,11]
[359572480,1746133852198,-450.0,0.00035616,11]
[359572481,1746133852207,-450.0,0.00035616,11]
[359572482,1746133852217,-450.0,0.00035616,11]
[359572483,1746133852226,-506.63,0.00035616,11]
[359572484,1746133852236,-450.0,0.00035616,11]
[359572485,1746133852245,-504.86,0.00035616,11]
[359572486,1746133852255,-482.76,0.00035616,11]
[359572487,1746133852264,-450.0,0.00035616,11]
[359572488,1746133852274,-450.0,0.00035616,11]
[359572489,1746133852284,-634.39,0.00035616,11]
[359572490,1746133852294,-470.0,0.00035616,11]
[359572491,1746133852303,-450.0,0.00035616,11]
[359572492,1746133852313,-450.0,0.00035616,11]
[359572493,1746133852323,-450.0,0.00035616,3]
[359572494,1746133852335,-565.32,0.00035616,11]
[359572495,1746133852347,-450.0,0.00035616,11]
[359572496,1746133852357,-450.0,0.00035616,11]
[359572497,1746133852367,-763.85,0.00035616,11]
[359572498,1746133852377,-705.22,0.00035616,11]
[359572499,1746133852387,-450.0,0.00035616,11]
[359572500,1746133852396,-883.92,0.00035616,11]
[359572501,1746133852407,-450.0,0.00035616,11]
[359572502,1746133852416,-934.17,0.00035616,11]
[359572503,1746133852426,-450.0,0.00035616,11]
[359572504,1746133852435,-1784.68,0.00035616,11]
[359572505,1746133852445,-499.93,0.00035616,11]
[359572506,1746133852454,-972.68,0.00035616,11]
[359572507,1746133852464,-771.26,0.00035616,11]
[359572508,1746133852473,-470.0,0.00035616,11]
[359572509,1746133852483,-603.85,0.00035616,11]
[359572510,1746133852492,-450.0,0.00035616,11]
[359572511,1746133852502,-679.98,0.00035616,11]
[359572512,1746133852511,-470.0,0.00035616,11]
[359572513,1746133852521,-450.0,0.00035616,11]
[359572514,1746133852531,-450.0,0.00035616,11]
[359572515,1746133852540,-463.2,0.00035616,11]
[359572516,1746133852549,-1919.28,0.00035616,11]
[359572517,1746133852559,-515.21436929,0.00035616,11]
[359572518,1746133852568,-506.53,0.00035616,11]
[359572519,1746133852578,-450.0,0.00035616,11]
[359572520,1746133852588,-520.40783901,0.00035616,11]
[359572521,1746133852598,-909.63,0.00035616,11]
[359572522,1746133852607,-450.0,0.00035616,11]
[359572523,1746133852617,-450.0,0.00035616,11]
[359572524,1746133852627,-470.0,0.00035616,11]
[359572525,1746133852637,-450.0,0.00035616,11]
[359572526,1746133852647,-1134.06,0.00035616,11]
[359572527,1746133852657,-450.0,0.00035616,11]
[359572528,1746133852666,-450.0,0.00035616,11]
[359572529,1746133852675,-450.0,0.00035616,11]
[359572530,1746133852685,-614.12,0.00035616,11]
[359572531,1746133852695,-917.86,0.00035616,11]
[359572532,1746133852705,-470.0,0.00035616,11]
[359572533,1746133852714,-1083.69,0.00035616,11]
[359572534,1746133852724,-645.1,0.00035616,11]
[359572535,1746133852734,-470.0,0.00035616,11]
[359572536,1746133852743,-450.0,0.00035616,11]
[359572537,1746133852753,-1312.66,0.00035616,11]
[359572538,1746133852762,-470.0,0.00035616,11]
[359572539,1746133852772,-787.8,0.00035616,11]
[359572540,1746133852782,-1111.23,0.00035616,11]
[359572541,1746133852792,-2000.0,0.00035616,11]
[359572542,1746133852802,-470.0,0.00035616,11]
[359572543,1746133852812,-469.82,0.00035616,11]
[359572544,1746133852822,-450.0,0.00035616,11]
[359572545,1746133852832,-847.91,0.00035616,11]
[359572546,1746133852841,-510.94729012,0.00035616,11]
[359572547,1746133852851,-470.0,0.00035616,11]
[359572548,1746133852861,-328.28806587,0.00035616,11]
[359572549,1746133852871,-513.8,0.00035616,11]
[359572550,1746133852880,-910.25,0.00035616,11]
[359572551,1746133852890,-620.25,0.00035616,11]
[359572552,1746133852900,-2739.96,0.00035616,11]
[359572553,1746133852910,-450.0,0.00035616,11]
[359572554,1746133852920,-552.99025991,0.00035616,11]
[359572555,1746133852930,-450.0,0.00035616,11]
[359572556,1746133852939,-556.66,0.00035616,11]
[359572557,1746133852949,-1374.59,0.00035616,11]
[359572558,1746133852959,-450.0,0.00035616,11]
[359572559,1746133853048,-1439.64,0.00035616,11]
[359572560,1746133853061,-1098.77,0.00035616,11]
[359572561,1746133853071,-450.0,0.00035616,11]
[359572562,1746133853080,-9021.74,0.00035616,11]
[359572563,1746133853090,-1394.71,0.00035616,11]
[359572564,1746133853099,-1167.5,0.00035616,11]
[359572565,1746133853110,-674.63,0.00035616,11]
[359572566,1746133853120,-1515.86,0.00035616,11]
[359572567,1746133853129,-450.0,0.00035616,11]
[359572568,1746133853139,-470.0,0.00035616,11]
[359572569,1746133853148,-450.0,0.00035616,11]
[359572570,1746133853158,-751.61,0.00035616,11]
[359572571,1746133853167,-470.0,0.00035616,11]
[359572572,1746133853176,-470.0,0.00035616,11]
[359572573,1746133853185,-3828.21,0.00035616,11]
[359572574,1746133853195,-506.62951213,0.00035616,11]
[359572575,1746133853204,-4628.51,0.00035616,11]
[359572576,1746133853213,-437.02685647,0.00035616,11]
[359572577,1746133853222,-450.0,0.00035616,11]
[359572578,1746133853231,-450.0,0.00035616,11]
[359572579,1746133853240,-470.0,0.00035616,11]
[359572580,1746133853250,-2749.02,0.00035616,11]
[359572581,1746133853259,-459.07,0.00035616,11]
[359572582,1746133853268,-450.0,0.00035616,11]
[359572583,1746133853277,-887.91,0.00035616,11]
[359572584,1746133853286,-450.0,0.00035616,11]
[359572585,1746133853295,-589.17004158,0.00035616,11]
[359572586,1746133853304,-470.0,0.00035616,11]
[359572587,1746133853313,-1762.62,0.00035616,11]
[359572588,1746133853322,-1257.44,0.00035616,11]
[359572589,1746133853333,-450.0,0.00035616,11]
[359572590,1746133853343,-450.0,0.00035616,11]
[359572591,1746133853352,-470.0,0.00035616,11]
[359572592,1746133853362,-10082.18,0.00035616,11]
[359572593,1746133853372,-450.0,0.00035616,11]
[359572594,1746133853383,-527.32593544,0.00035616,11]
[359572595,1746133853394,-664.97,0.00035616,11]
[359572596,1746133853404,-450.0,0.00035616,11]
[359572597,1746133853415,-901.41,0.00035616,11]
[359572598,1746133853426,-450.0,0.00035616,11]
[359572599,1746133853437,-9533.34,0.00035616,11]
[359572600,1746133853448,-1153.29,0.00035616,11]
[359572601,1746133853458,-450.0,0.00035616,11]
[359572602,1746133853469,-756.54,0.00035616,11]
[359572603,1746133853479,-522.13004165,0.00035616,11]
[359572604,1746133853489,-4378.04,0.00035616,11]
[359572605,1746133853499,-450.0,0.00035616,11]
[359572606,1746133853508,-615.49,0.00035616,11]
[359572607,1746133853517,-504.43979664,0.00035616,11]
[359572608,1746133853526,-1031.81,0.00035616,11]
[359572609,1746133853535,-450.0,0.00035616,11]
[359572610,1746133853545,-1032.24,0.00035616,11]
[359572611,1746133853554,-546.39,0.00035616,11]
[359572612,1746133853563,-450.0,0.00035616,11]
[359572613,1746133853571,-450.0,0.00035616,11]
[359572614,1746133853580,-726.16,0.00035616,11]
[359572615,1746133853588,-470.0,0.00035616,11]
[359572616,1746133853596,-701.88,0.00035616,11]
[359572617,1746133853604,-488.39889744,0.00035616,11]
[359572618,1746133853613,-450.0,0.00035616,11]
[359572619,1746133853622,-570.89202506,0.00035616,11]
[359572620,1746133853630,-450.0,0.00035616,11]
[359572621,1746133853639,-450.0,0.00035616,11]
[359572622,1746133853648,-450.0,0.00035616,11]
[359572623,1746133853658,-1522.88,0.00035616,11]
[359572624,1746133853669,-578.29,0.00035616,11]
[359572625,1746133853678,-473.46,0.00035616,11]
[359572626,1746133853687,-450.0,0.00035616,11]
[359572627,1746133853697,-939.06,0.00035616,11]
[359572628,1746133853707,-151.962676,0.00035616,7]
[359572629,1746133853717,-500.0,0.00035616,11]
[359572630,1746133853727,-500.0,0.00035616,11]
[359572631,1746133853737,-3195.18,0.00035616,11]
[359572632,1746133853746,-500.0,0.00035616,11]
[359572633,1746133853756,-500.0,0.00035616,11]
[359572634,1746133853765,-507.77604178,0.00035616,11]
[359572635,1746133853775,-12090.2,0.00035616,2]
[359572636,1746133853785,-450.0,0.00035616,11]
[359572637,1746133853794,-1022.27,0.00035616,11]
[359572638,1746133853803,-502.92,0.00035616,11]
[359572639,1746133853814,-492.77,0.00035616,11]
[359572640,1746133853823,-925.94,0.00035616,11]
[359572641,1746133853832,-1016.8,0.00035616,11]
[359572642,1746133853842,-450.0,0.00035616,11]
[359572643,1746133853851,-133710.78,0.00035616,11]
[359572644,1746133853861,-450.0,0.00035616,11]
[359572645,1746133853871,-460.53,0.00035616,11]
[359572646,1746133853880,-468.79,0.00035616,11]
[359572647,1746133853889,-450.0,0.00035616,2]
[359572648,1746133853899,-470.0,0.00035616,11]
[359572649,1746133853908,-3589.66,0.00035616,11]
[359572650,1746133853918,-1250.93,0.00035616,11]
[359572651,1746133853927,-508.4729682,0.00035616,11]
[359572652,1746133853936,-521.97863277,0.00035616,11]
[359572653,1746133853945,-450.0,0.00035616,11]
[359572654,1746133853954,-555.7194512,0.00035616,11]
[359572655,1746133853963,-470.0,0.00035616,11]
[359572656,1746133853972,-9732.88,0.00035616,11]
[359572657,1746133853981,-540.67462839,0.00035616,11]
[359572658,1746133853990,-450.0,0.00035616,11]
[359572659,1746133853998,-450.0,0.00035616,11]
[359572660,1746133854007,-1445.69,0.00035616,11]
[359572661,1746133854017,-450.0,0.00035616,11]
[359572662,1746133854025,-920.25,0.00035616,11]
[359572663,1746133854035,-297.25466182,0.00035616,11]
[359572664,1746133854044,-531.49499428,0.00035616,11]
[359572665,1746133854053,-1091.6,0.00035616,11]
[359572666,1746133854062,-5058.13,0.00035616,11]
[359572667,1746133854072,-450.0,0.00035616,11]
[359572668,1746133854080,-2800.3,0.00035616,11]
[359572669,1746133854090,-470.0,0.00035616,11]
[359572670,1746133854099,-710.22,0.00035616,11]
[359572671,1746133854108,-470.0,0.00035616,11]
[359572672,1746133854119,-450.0,0.00035616,11]
[359572673,1746133854128,-578.53276195,0.00035616,11]
[359572674,1746133854137,-668.14,0.00035616,11]
[359572675,1746133854145,-1051.09,0.00035616,11]
[359572676,1746133854153,-450.0,0.00035616,11]
[359572677,1746133854162,-1195.42,0.00035616,11]
[359572678,1746133854170,-450.0,0.00035616,11]
[359572679,1746133854178,-1082.52,0.00035616,11]
[359572680,1746133854186,-450.0,0.00035616,11]
[359572681,1746133854194,-450.0,0.00035616,11]
[359572682,1746133854201,-666.54,0.00035616,11]
[359572683,1746133854209,-450.0,0.00035616,11]
[359572684,1746133854217,-26036.84,0.00035616,11]
[359572685,1746133854226,-450.0,0.00035616,2]
[359572686,1746133854235,-450.0,0.00035616,11]
[359572687,1746133854244,-1150.22,0.00035616,11]
[359572688,1746133854253,-3121.38,0.00035616,11]
[359572689,1746133854263,-450.0,0.00035616,11]
[359572690,1746133854272,-450.0,0.00035616,11]
[359572691,1746133854282,-493.94,0.00035616,11]
[359572692,1746133854291,-517.42484704,0.00035616,11]
[359572693,1746133854300,-450.0,0.00035616,11]
[359572694,1746133854310,-1728.63,0.00035616,11]
[359572695,1746133854320,-470.0,0.00035616,11]
[359572696,1746133854329,-151.0,0.00035616,7]
[359572697,1746133854341,-450.0,0.00035616,3]
[359572698,1746133854351,-3225.23,0.00035616,11]
[359572699,1746133854360,-471.05,0.00035616,11]
[359572700,1746133854370,-470.0,0.00035616,11]
[359572701,1746133854382,-1233.93,0.00035616,11]
[359572702,1746133854391,-451.73,0.00035616,11]
[359572703,1746133854401,-504.47,0.00035616,11]
[359572704,1746133854410,-470.0,0.00035616,11]
[359572705,1746133854420,-470.0,0.00035616,11]
[359572706,1746133854429,-450.0,0.00035616,11]
[359572707,1746133854438,-3069.31,0.00035616,11]
[359572708,1746133854448,-525.60586167,0.00035616,11]
[359572709,1746133854457,-529.91644247,0.00035616,11]
[359572710,1746133854467,-450.0,0.00035616,11]
[359572711,1746133854476,-450.0,0.00035616,11]
[359572712,1746133854486,-885.02,0.00035616,11]
[359572713,1746133854496,-1215.87,0.00035616,11]
[359572714,1746133854505,-450.0,0.00035616,11]
[359572715,1746133854515,-500.0,0.00035673,5]
[359572716,1746133854524,-500.0,0.00035673,5]
[359572717,1746133854535,-500.0,0.00035673,5]
[359572718,1746133854547,-500.0,0.00035673,5]
[359572719,1746133854557,-500.0,0.00035673,5]
[359572720,1746133854567,-150.0,0.00035688,2]
[359572721,1746133854577,-698.22,0.00035695,2]
[359572722,1746133854587,-1000.0,0.000358,4]
[359572723,1746133854596,-1000.0,0.000358,5]
[359572724,1746133854606,-22495.98,0.000358,2]
[359572725,1746133854616,-311.21979479,0.0003583,2]
[359572726,1746133854625,-150.0,0.00035848,2]
[359572727,1746133854635,-233.31198073,0.00035889,3]
[359572728,1746133854643,-450.0,0.0003589,11]
[359572729,1746133854653,-450.0,0.0003589,11]
[359572730,1746133854664,-450.0,0.0003589,11]
[359572731,1746133854676,-274.81802997,0.0003589,11]
[359572732,1746133854686,-450.0,0.0003589,11]
[359572733,1746133854695,-450.0,0.0003589,11]
[359572734,1746133854704,-450.0,0.0003589,11]
[359572735,1746133854714,-450.0,0.0003589,11]
[359572736,1746133854724,-450.0,0.0003589,11]
[359572737,1746133854733,-596.731986,0.0003589,7]
[359572738,1746133854745,-596.731986,0.0003589,7]
[359572739,1746133854755,-450.0,0.0003589,11]
[359572740,1746133854766,-450.0,0.0003589,11]
[359572741,1746133854775,-450.0,0.0003589,11]
[359572742,1746133854785,-484.13,0.0003589,11]
[359572743,1746133854795,-1057.75,0.0003589,11]
[359572744,1746133854804,-450.0,0.0003589,11]
[359572745,1746133854814,-613.96,0.0003589,11]
[359572746,1746133854824,-1485.28,0.0003589,11]
[359572747,1746133854834,-450.0,0.0003589,11]
[359572748,1746133854844,-450.0,0.0003589,11]
[359572749,1746133854854,-637.94,0.0003589,11]
[359572750,1746133854864,-450.0,0.0003589,11]
[359572751,1746133854873,-450.0,0.0003589,11]
[359572752,1746133854883,-450.0,0.0003589,11]
[359572753,1746133854893,-575.81,0.0003589,11]
[359572754,1746133854903,-485.98,0.0003589,11]
[359572755,1746133854912,-450.0,0.0003589,11]
[359572756,1746133854922,-151.0,0.0003589,7]
[359572757,1746133854931,-450.0,0.0003589,11]
[359572758,1746133854941,-621.12,0.0003589,11]
[359572759,1746133854951,-450.0,0.0003589,11]
[359572760,1746133854960,-450.0,0.0003589,11]
[359572761,1746133854970,-450.0,0.0003589,11]
[359572762,1746133854979,-450.0,0.0003589,11]
[359572763,1746133854989,-450.0,0.0003589,11]
[359572764,1746133854999,-450.0,0.0003589,11]
[359572765,1746133855008,-450.0,0.0003589,11]
[359572766,1746133855018,-450.0,0.0003589,11]
[359572767,1746133855028,-450.0,0.0003589,11]
[359572768,1746133855038,-165.141372,0.0003589,7]
[359572769,1746133855047,-450.0,0.0003589,11]
[359572770,1746133855057,-662.09,0.0003589,11]
[359572771,1746133855067,-618.53,0.0003589,11]
[359572772,1746133855077,-450.0,0.0003589,11]
[359572773,1746133855088,-450.0,0.0003589,11]
[359572774,1746133855097,-580.73,0.0003589,11]
[359572775,1746133855106,-450.0,0.0003589,11]
[359572776,1746133855117,-450.0,0.0003589,11]